[Event "Lueneburg Open-A 2019"]
[Site "Lueneburg"]
[Date "2019.08.06"]
[Round "4.23"]
[White "Meschke, Oliver"]
[Black "Blum, Frederik"]
[Result "1/2-1/2"]
[ECO "A03"]
[WhiteElo "1900"]
[BlackElo "2037"]
[Annotator "NA"]
[PlyCount "49"]
[EventDate "2019.08.03"]
[EventType "swiss"]
[EventCountry "GER"]
[SourceTitle "playchess.com"]
[Source "ChessBase"]
[SourceQuality "1"]
[TimeControl "40/5400+30:1800+30"]

1. f4 {[%emt 0:00:00]} d5 {[%emt 0:00:00]} 2. Nf3 {[%emt 0:00:00]} Nf6 {[%emt 0:00:08]} 3. c4 {[%emt 0:00:00]} e6 {[%emt 0:11:58]} 4. e3 {[%emt 0:00:47]} c5 {[%emt 0:01:32]} 5. Bd3 {[%emt 0:12:14]} Nc6 {[%emt 0:04:44]} 6. Na3 {[%emt 0:04:34]} g6 {[%emt 0:02:28]} 7. b3 {[%emt 0:02:27]} Bg7 {[%emt 0:01:44]} 8. Bb2 {[%emt 1:13:58]} O-O 9. O-O {[%emt 0:00:00]} Qe7 {[%emt 0:11:57]} 10. Rc1 {[%emt 0:00:00]} Ne8 {[%emt 0:05:44]} 11. Bxg7 {[%emt 0:00:00]} Nxg7 {[%emt 0:00:16]} 12. Be2 {[%emt 0:00:00]} d4 {[%emt 0:02:49]} 13. Nc2 {[%emt 0:00:00]} Rd8 {[%emt 0:10:00]} 14. exd4 {[%emt 0:00:00]} cxd4 {[%emt 0:01:13]} 15. Bd3 {[%emt 0:00:00]} Qd6 {[%emt 0:04:34]} 16. g3 {[%emt 0:00:00]} e5 {[%emt 0:06:44]} 17. fxe5 {[%emt 0:00:00]} Nxe5 {[%emt 0:00:05]} 18. Nxe5 {[%emt 0:00:00]} Qxe5 {[%emt 0:00:08]} 19. Qe1 {[%emt 0:00:00]} Qd6 {[%emt 0:05:43]} 20. Qf2 {[%emt 0:00:00]} f5 {[%emt 0:01:08]} 21. Qf3 {[%emt 0:00:00]} Qf6 {[%emt 0:04:33]} 22. Rfe1 {[%emt 0:00:00]} Ne6 {[%emt 0:01:06]} 23. Nb4 {[%emt 0:00:00]} Kg7 {[%emt 0:10:12]} 24. Nd5 {[%emt 0:00:00]} Qf8 {[%emt 0:00:47]} 25. Qe2 {[%emt 0:01:18]} 1/2-1/2

[Event "Lueneburg Open-A 2019"]
[Site "Lueneburg"]
[Date "2019.08.06"]
[Round "4.24"]
[White "Schaefer, Maik"]
[Black "Koenig, Christian"]
[Result "0-1"]
[ECO "C41"]
[WhiteElo "1781"]
[BlackElo "2026"]
[Annotator "NA"]
[PlyCount "72"]
[EventDate "2019.08.03"]
[EventType "swiss"]
[EventCountry "GER"]
[SourceTitle "playchess.com"]
[Source "ChessBase"]
[SourceQuality "1"]
[TimeControl "40/5400+30:1800+30"]

1. e4 {[%emt 0:10:31]} d6 {[%emt 0:00:00]} 2. d4 {[%emt 0:00:27]} Nf6 {[%emt 0:00:11]} 3. Nc3 {[%emt 0:01:10]} Nbd7 {[%emt 0:00:49]} 4. Be3 {[%emt 0:04:27]} e5 {[%emt 0:00:21]} 5. Nf3 {[%emt 0:04:33]} Be7 {[%emt 0:00:49]} 6. Be2 {[%emt 0:02:40]} c6 {[%emt 0:00:57]} 7. O-O {[%emt 0:01:24]} Qc7 {[%emt 0:05:01]} 8. Nd2 {[%emt 0:03:22]} b5 {[%emt 0:02:51]} 9. a3 {[%emt 0:07:38]} a6 {[%emt 0:00:33]} 10. dxe5 {[%emt 0:06:48]} dxe5 {[%emt 0:01:01]} 11. g4 {[%emt 0:10:51]} h6 {[%emt 0:01:54]} 12. Bf3 {[%emt 0:01:57]} Nc5 {[%emt 0:01:24]} 13. Re1 {[%emt 0:10:13]} Be6 {[%emt 0:07:11]} 14. h3 {[%emt 0:05:21]} Nh7 {[%emt 0:04:39]} 15. Qe2 {[%emt 0:02:23]} Nb7 {[%emt 0:09:41]} 16. b3 {[%emt 0:01:42]} Qa5 {[%emt 0:06:38]} 17. b4 {[%emt 0:02:22]} Qc7 {[%emt 0:00:11]} 18. Qf1 {[%emt 0:01:17]} a5 {[%emt 0:05:36]} 19. Kg2 {[%emt 0:03:07]} O-O {[%emt 0:02:40]} 20. Rab1 {[%emt 0:02:23]} axb4 {[%emt 0:03:16]} 21. axb4 {[%emt 0:00:09]} Ng5 {[%emt 0:06:14]} 22. Bd1 {[%emt 0:01:49]} Ra3 {[%emt 0:02:35]} 23. Ne2 {[%emt 0:01:00]} Rd8 {[%emt 0:01:00]} 24. c3 {[%emt 0:01:33]} Nd6 {[%emt 0:03:09]} 25. Bc2 {[%emt 0:01:24]} Nc4 {[%emt 0:03:14]} 26. Nxc4 {[%emt 0:00:42]} Bxc4 {[%emt 0:00:07]} 27. f4 {[%emt 0:01:06]} Rxc3 {[%emt 0:08:15]} 28. fxg5 {[%emt 0:01:54]} Rxe3 {[%emt 0:00:06]} 29. Qf2 {[%emt 0:01:17]} Bxg5 {[%emt 0:00:55]} 30. h4 {[%emt 0:04:11]} Rd2 {[%emt 0:00:32]} 31. Bd1 {[%emt 0:01:03]} Bf4 {[%emt 0:00:39]} 32. Rc1 {[%emt 0:01:41]} Qd7 {[%emt 0:01:51]} 33. Nxf4 {[%emt 0:01:27]} Rxf2+ {[%emt 0:00:25]} 34. Kxf2 {[%emt 0:00:10]} exf4 {[%emt 0:01:55]} 35. Rxe3 {[%emt 0:00:59]} fxe3+ {[%emt 0:00:24]} 36. Kxe3 {[%emt 0:00:12]} Qd3+ {[%emt 0:00:07]} 0-1

[Event "Lueneburg Open-A 2019"]
[Site "Lueneburg"]
[Date "2019.08.06"]
[Round "4.25"]
[White "Kiesel, Harald"]
[Black "Ziese, Gerhard"]
[Result "1-0"]
[ECO "C63"]
[WhiteElo "2023"]
[BlackElo "1897"]
[Annotator "NA"]
[PlyCount "73"]
[EventDate "2019.08.03"]
[EventType "swiss"]
[EventCountry "GER"]
[SourceTitle "playchess.com"]
[Source "ChessBase"]
[SourceQuality "1"]
[TimeControl "40/5400+30:1800+30"]

1. e4 {[%emt 0:00:00]} e5 {[%emt 0:00:00]} 2. Nf3 {[%emt 0:00:00]} Nc6 {[%emt 0:00:00]} 3. Bb5 {[%emt 0:00:00]} f5 {[%emt 0:00:00]} 4. d3 {[%emt 0:00:00]} fxe4 {[%emt 0:00:00]} 5. dxe4 {[%emt 0:00:00]} Nf6 {[%emt 0:00:02]} 6. O-O {[%emt 0:00:26]} Bc5 {[%emt 0:00:08]} 7. Bxc6 {[%emt 0:00:45]} bxc6 {[%emt 0:00:08]} 8. Nxe5 {[%emt 0:00:07]} O-O {[%emt 0:00:09]} 9. Nd2 {[%emt 0:00:29]} Qe8 {[%emt 0:01:49]} 10. Nd3 {[%emt 0:00:26]} Bb6 {[%emt 0:01:03]} 11. e5 {[%emt 0:03:28]} Nd5 {[%emt 0:00:37]} 12. Nc4 {[%emt 0:00:57]} Ba6 {[%emt 0:01:46]} 13. Nxb6 {[%emt 0:03:26]} axb6 {[%emt 0:00:55]} 14. Re1 {[%emt 0:13:41]} Qg6 {[%emt 0:02:48]} 15. a3 {[%emt 0:10:29]} Rf7 {[%emt 0:22:53]} 16. Nb4 {[%emt 0:05:14]} Bc4 {[%emt 0:01:29]} 17. e6 {[%emt 0:29:27]} Re7 {[%emt 0:07:05]} 18. exd7 {[%emt 0:01:39]} Rxd7 {[%emt 0:01:20]} 19. Nd3 {[%emt 0:12:52]} Bxd3 {[%emt 0:07:56]} 20. cxd3 {[%emt 0:04:52]} Rad8 {[%emt 0:01:13]} 21. d4 {[%emt 0:03:06]} h6 {[%emt 0:04:04]} 22. Be3 {[%emt 0:01:56]} c5 {[%emt 0:01:29]} 23. Qb3 {[%emt 0:01:37]} cxd4 {[%emt 0:00:51]} 24. Bxd4 {[%emt 0:00:13]} Kh7 {[%emt 0:03:40]} 25. Be5 {[%emt 0:00:07]} Qg4 {[%emt 0:10:06]} 26. h3 {[%emt 0:00:22]} Qg5 {[%emt 0:06:05]} 27. Qg3 {[%emt 0:01:29]} Qxg3 {[%emt 0:00:55]} 28. Bxg3 {[%emt 0:00:17]} Nf6 {[%emt 0:04:41]} 29. Rac1 {[%emt 0:00:50]} c5 {[%emt 0:02:25]} 30. Re6 {[%emt 0:00:23]} Rd1+ {[%emt 0:00:33]} 31. Rxd1 {[%emt 0:00:31]} Rxd1+ {[%emt 0:00:02]} 32. Kh2 {[%emt 0:00:05]} Nd5 {[%emt 0:00:20]} 33. Rd6 {[%emt 0:00:55]} b5 {[%emt 0:03:44]} 34. Be5 {[%emt 0:00:49]} g5 {[%emt 0:03:49]} 35. Rd7+ {[%emt 0:00:50]} Kg6 {[%emt 0:00:11]} 36. g4 {[%emt 0:00:30]} h5 {[%emt 0:03:49]} 37. Rd6+ {[%emt 0:00:04]} 1-0

[Event "Lueneburg Open-A 2019"]
[Site "Lueneburg"]
[Date "2019.08.06"]
[Round "4.26"]
[White "Deutschbein, Christopher"]
[Black "Wirries, Frank-Michael"]
[Result "1-0"]
[ECO "B21"]
[WhiteElo "2015"]
[BlackElo "1858"]
[Annotator "NA"]
[PlyCount "115"]
[EventDate "2019.08.03"]
[EventType "swiss"]
[EventCountry "GER"]
[SourceTitle "playchess.com"]
[Source "ChessBase"]
[SourceQuality "1"]
[TimeControl "40/5400+30:1800+30"]

1. e4 {[%emt 0:00:00]} c5 {[%emt 0:00:00]} 2. d3 {[%emt 0:00:00]} g6 {[%emt 0:04:05]} 3. f4 {[%emt 0:00:15]} d6 {[%emt 0:03:16]} 4. Nf3 {[%emt 0:00:20]} Bg7 {[%emt 0:00:30]} 5. Be2 {[%emt 0:00:16]} Nc6 {[%emt 0:02:20]} 6. c3 {[%emt 0:01:41]} e5 {[%emt 0:05:19]} 7. O-O {[%emt 0:03:33]} Nge7 {[%emt 0:04:00]} 8. Be3 {[%emt 0:07:53]} Qc7 {[%emt 0:04:20]} 9. Na3 {[%emt 0:03:56]} O-O {[%emt 0:13:01]} 10. Rc1 {[%emt 0:10:17]} f5 {[%emt 0:10:06]} 11. Nb5 {[%emt 0:18:10]} Qb8 {[%emt 0:00:33]} 12. Ng5 {[%emt 0:04:35]} a6 {[%emt 0:04:17]} 13. Na3 {[%emt 0:07:04]} h6 {[%emt 0:05:12]} 14. Nh3 {[%emt 0:05:10]} fxe4 {[%emt 0:11:57]} 15. dxe4 {[%emt 0:01:02]} b5 {[%emt 0:00:44]} 16. Bg4 {[%emt 0:01:23]} Bxg4 {[%emt 0:01:30]} 17. Qxg4 {[%emt 0:00:09]} Qc8 {[%emt 0:01:04]} 18. Qxc8 {[%emt 0:04:32]} Raxc8 {[%emt 0:00:26]} 19. Rcd1 {[%emt 0:00:12]} Rcd8 {[%emt 0:00:37]} 20. Rd2 {[%emt 0:01:18]} Nc8 {[%emt 0:07:28]} 21. Rfd1 {[%emt 0:01:25]} Kh7 {[%emt 0:03:04]} 22. Nc2 {[%emt 0:02:35]} Bf6 {[%emt 0:03:07]} 23. Ne1 {[%emt 0:02:02]} Be7 {[%emt 0:03:53]} 24. Nf3 {[%emt 0:00:25]} Nb6 {[%emt 0:01:42]} 25. fxe5 {[%emt 0:02:04]} dxe5 {[%emt 0:01:59]} 26. Rxd8 {[%emt 0:00:18]} Rxd8 {[%emt 0:01:00]} 27. Rxd8 {[%emt 0:00:07]} Bxd8 {[%emt 0:01:34]} 28. Bxc5 {[%emt 0:00:36]} Na4 {[%emt 0:00:18]} 29. Bd6 {[%emt 0:01:50]} Bf6 {[%emt 0:00:42]} 30. Nf2 {[%emt 0:04:16]} Nxb2 {[%emt 0:02:08]} 31. Ng4 {[%emt 0:00:08]} Kg7 {[%emt 0:00:21]} 32. Nfxe5 {[%emt 0:00:35]} Nxe5 {[%emt 0:00:14]} 33. Nxe5 {[%emt 0:00:07]} Na4 {[%emt 0:00:38]} 34. c4 {[%emt 0:00:51]} bxc4 {[%emt 0:01:37]} 35. Nxc4 {[%emt 0:00:26]} Nc3 {[%emt 0:00:05]} 36. e5 {[%emt 0:00:11]} Bd8 {[%emt 0:01:21]} 37. a3 {[%emt 0:00:26]} Kf7 {[%emt 0:00:41]} 38. Kf2 {[%emt 0:04:13]} Ke6 {[%emt 0:00:22]} 39. Ke3 {[%emt 0:00:32]} Kd5 {[%emt 0:01:13]} 40. Kd3 {[%emt 0:00:23]} Nb5 {[%emt 0:01:51]} 41. Bf8 {[%emt 0:35:20]} Bg5 {[%emt 0:04:04]} 42. a4 {[%emt 0:00:00]} Nc7 {[%emt 0:00:55]} 43. Bd6 {[%emt 0:00:00]} Ne8 {[%emt 0:03:07]} 44. Bb8 {[%emt 0:00:00]} Kc5 {[%emt 0:02:00]} 45. Nd6 {[%emt 0:00:00]} Ng7 {[%emt 0:01:06]} 46. Ne4+ {[%emt 0:00:00]} Kd5 {[%emt 0:00:18]} 47. Nc3+ {[%emt 0:00:00]} Ke6 {[%emt 0:03:12]} 48. Ke4 {[%emt 0:00:00]} Nf5 {[%emt 0:00:48]} 49. Nd5 {[%emt 0:00:05]} Kd7 {[%emt 0:03:40]} 50. Nb4 {[%emt 0:02:55]} a5 {[%emt 0:00:32]} 51. Nd5 {[%emt 0:00:15]} Ke6 {[%emt 0:01:19]} 52. Bc7 {[%emt 0:01:40]} Bd2 {[%emt 0:00:10]} 53. Nf4+ {[%emt 0:01:27]} Kf7 {[%emt 0:01:41]} 54. e6+ {[%emt 0:01:20]} Ke7 {[%emt 0:00:52]} 55. Nxg6+ {[%emt 0:00:23]} Kxe6 {[%emt 0:00:27]} 56. Nf8+ {[%emt 0:00:22]} Kf7 {[%emt 0:00:43]} 57. Kxf5 {[%emt 0:00:08]} Kxf8 {[%emt 0:00:07]} 58. Bf4 {[%emt 0:09:49]} 1-0

[Event "Lueneburg Open-A 2019"]
[Site "Lueneburg"]
[Date "2019.08.06"]
[Round "4.27"]
[White "Comes, Bruno"]
[Black "Berres, Eric"]
[Result "1/2-1/2"]
[ECO "D58"]
[WhiteElo "2165"]
[BlackElo "1890"]
[Annotator "NA"]
[PlyCount "40"]
[EventDate "2019.08.03"]
[EventType "swiss"]
[EventCountry "GER"]
[SourceTitle "playchess.com"]
[Source "ChessBase"]
[SourceQuality "1"]
[TimeControl "40/5400+30:1800+30"]

1. d4 {[%emt 0:00:00]} d5 {[%emt 0:00:00]} 2. c4 {[%emt 0:00:00]} e6 {[%emt 0:00:05]} 3. Nc3 {[%emt 0:00:00]} Nf6 {[%emt 0:00:27]} 4. Bg5 {[%emt 0:00:10]} Be7 {[%emt 0:01:07]} 5. Nf3 {[%emt 0:00:23]} O-O {[%emt 0:02:56]} 6. e3 {[%emt 0:01:12]} h6 {[%emt 0:03:42]} 7. Bh4 {[%emt 0:00:37]} Nbd7 {[%emt 0:03:45]} 8. Bd3 {[%emt 0:02:52]} dxc4 {[%emt 0:02:41]} 9. Bxc4 {[%emt 0:00:10]} b6 {[%emt 0:03:21]} 10. Qe2 {[%emt 0:01:36]} Bb7 {[%emt 0:03:07]} 11. O-O {[%emt 0:06:43]} Nd5 {[%emt 0:10:36]} 12. Bxe7 {[%emt 0:01:42]} Qxe7 {[%emt 0:02:59]} 13. Nxd5 {[%emt 0:01:37]} exd5 {[%emt 0:01:20]} 14. Bd3 {[%emt 0:03:15]} c5 {[%emt 0:05:02]} 15. b3 {[%emt 0:01:37]} Rac8 {[%emt 0:03:18]} 16. Rac1 {[%emt 0:01:26]} Nf6 {[%emt 0:05:35]} 17. h3 {[%emt 0:01:31]} Rfe8 {[%emt 0:00:49]} 18. Rc2 {[%emt 0:02:08]} cxd4 {[%emt 0:04:27]} 19. Nxd4 {[%emt 0:01:35]} Rxc2 {[%emt 0:00:36]} 20. Qxc2 {[%emt 0:00:36]} Rc8 {[%emt 0:03:52]} 1/2-1/2

[Event "Lueneburg Open-A 2019"]
[Site "Lueneburg"]
[Date "2019.08.06"]
[Round "4.28"]
[White "Foo, Tzun Hong"]
[Black "Haas, Frank-Martin"]
[Result "0-1"]
[ECO "C01"]
[WhiteElo "1880"]
[BlackElo "2152"]
[Annotator "NA"]
[PlyCount "75"]
[EventDate "2019.08.03"]
[EventType "swiss"]
[EventCountry "GER"]
[SourceTitle "playchess.com"]
[Source "ChessBase"]
[SourceQuality "1"]
[TimeControl "40/5400+30:1800+30"]

1. e4 {[%emt 0:00:00]} e6 {[%emt 0:00:00]} 2. d4 {[%emt 0:00:00]} d5 {[%emt 0:00:06]} 3. exd5 {[%emt 0:00:00]} exd5 {[%emt 0:00:03]} 4. c4 {[%emt 0:00:07]} Bb4+ {[%emt 0:00:47]} 5. Nc3 {[%emt 0:00:07]} Ne7 {[%emt 0:01:06]} 6. Bd3 {[%emt 0:01:58]} Nbc6 {[%emt 0:03:52]} 7. Nge2 {[%emt 0:03:49]} Bf5 {[%emt 0:04:36]} 8. a3 {[%emt 0:00:56]} Bxd3 {[%emt 0:03:45]} 9. Qxd3 {[%emt 0:00:14]} dxc4 {[%emt 0:02:20]} 10. Qxc4 {[%emt 0:00:11]} Bxc3+ {[%emt 0:01:00]} 11. bxc3 {[%emt 0:00:23]} Qd5 {[%emt 0:00:28]} 12. Qxd5 {[%emt 0:12:35]} Nxd5 {[%emt 0:00:04]} 13. Bd2 {[%emt 0:00:15]} Na5 {[%emt 0:04:59]} 14. Rb1 {[%emt 0:04:10]} O-O-O {[%emt 0:01:58]} 15. O-O {[%emt 0:10:31]} Nc4 {[%emt 0:04:50]} 16. Rfd1 {[%emt 0:06:15]} Rhe8 {[%emt 0:02:34]} 17. Kf1 {[%emt 0:11:14]} Nxd2+ {[%emt 0:17:26]} 18. Rxd2 {[%emt 0:00:06]} Rxe2 {[%emt 0:00:09]} 19. Rxe2 {[%emt 0:00:04]} Nxc3 {[%emt 0:00:06]} 20. Rb4 {[%emt 0:00:03]} Nxe2 {[%emt 0:00:08]} 21. Kxe2 {[%emt 0:00:01]} Rd6 {[%emt 0:01:04]} 22. Ke3 {[%emt 0:03:38]} Rb6 {[%emt 0:06:54]} 23. Rxb6 {[%emt 0:14:57]} axb6 {[%emt 0:00:10]} 24. Ke4 {[%emt 0:01:36]} Kd7 {[%emt 0:00:17]} 25. f4 {[%emt 0:12:55]} Ke6 {[%emt 0:04:57]} 26. g4 {[%emt 0:01:58]} b5 {[%emt 0:02:48]} 27. f5+ {[%emt 0:08:58]} Kd6 {[%emt 0:00:41]} 28. h4 {[%emt 0:04:42]} f6 {[%emt 0:01:12]} 29. g5 {[%emt 0:00:39]} c6 {[%emt 0:01:15]} 30. Kf4 {[%emt 0:00:37]} Kd5 {[%emt 0:00:25]} 31. gxf6 {[%emt 0:01:41]} gxf6 {[%emt 0:00:07]} 32. Kg4 {[%emt 0:00:04]} Kxd4 {[%emt 0:00:18]} 33. Kh5 {[%emt 0:00:17]} c5 {[%emt 0:00:46]} 34. Kh6 {[%emt 0:00:54]} b4 {[%emt 0:00:36]} 35. axb4 {[%emt 0:00:42]} cxb4 {[%emt 0:00:05]} 36. Kxh7 {[%emt 0:00:06]} b3 {[%emt 0:00:12]} 37. h5 {[%emt 0:00:43]} b2 {[%emt 0:00:07]} 38. Kg6 {[%emt 0:00:08]} 0-1

[Event "Lueneburg Open-A 2019"]
[Site "Lueneburg"]
[Date "2019.08.06"]
[Round "4.29"]
[White "Dijkhuis, Oele"]
[Black "Moysich, Dirk"]
[Result "1-0"]
[ECO "C41"]
[WhiteElo "2161"]
[BlackElo "1871"]
[Annotator "NA"]
[PlyCount "59"]
[EventDate "2019.08.03"]
[EventType "swiss"]
[EventCountry "GER"]
[SourceTitle "playchess.com"]
[Source "ChessBase"]
[SourceQuality "1"]
[TimeControl "40/5400+30:1800+30"]

1. e4 {[%emt 0:00:00]} d6 {[%emt 0:00:00]} 2. d4 {[%emt 0:00:00]} Nf6 {[%emt 0:00:00]} 3. Nc3 {[%emt 0:00:00]} e5 {[%emt 0:00:05]} 4. Nge2 {[%emt 0:00:11]} exd4 {[%emt 0:00:25]} 5. Nxd4 {[%emt 0:00:08]} Be7 {[%emt 0:00:06]} 6. g3 {[%emt 0:00:10]} O-O {[%emt 0:01:24]} 7. Bg2 {[%emt 0:00:11]} Nc6 {[%emt 0:04:06]} 8. Nf5 {[%emt 0:10:56]} Bxf5 {[%emt 0:11:32]} 9. exf5 {[%emt 0:00:06]} Re8 {[%emt 0:10:18]} 10. O-O {[%emt 0:00:55]} Qd7 {[%emt 0:01:46]} 11. g4 {[%emt 0:00:57]} h6 {[%emt 0:11:18]} 12. f4 {[%emt 0:01:32]} d5 {[%emt 0:03:18]} 13. g5 {[%emt 0:05:22]} Bc5+ {[%emt 0:01:23]} 14. Kh1 {[%emt 0:03:18]} Nh7 {[%emt 0:06:36]} 15. f6 {[%emt 0:04:56]} g6 {[%emt 0:11:34]} 16. Nxd5 {[%emt 0:19:50]} Rad8 {[%emt 0:06:10]} 17. f5 {[%emt 0:02:19]} Ne5 {[%emt 0:05:05]} 18. fxg6 {[%emt 0:00:44]} Nxg6 {[%emt 0:00:10]} 19. Qh5 {[%emt 0:00:46]} Re5 {[%emt 0:04:05]} 20. Ne7+ {[%emt 0:14:33]} Bxe7 {[%emt 0:02:00]} 21. fxe7 {[%emt 0:00:45]} Qxe7 {[%emt 0:00:38]} 22. b3 {[%emt 0:33:21]} c6 {[%emt 0:06:12]} 23. Bb2 {[%emt 0:00:00]} Qxg5 {[%emt 0:03:33]} 24. Qf3 {[%emt 0:00:00]} Re7 {[%emt 0:00:13]} 25. Rae1 {[%emt 0:00:00]} Nh4 {[%emt 0:03:48]} 26. Qf2 {[%emt 0:00:00]} Rdd7 {[%emt 0:04:15]} 27. Rg1 {[%emt 0:00:00]} Rxe1 {[%emt 0:00:38]} 28. Qxe1 {[%emt 0:00:00]} Kf8 {[%emt 0:00:08]} 29. Bxc6 {[%emt 0:00:00]} Qc5 {[%emt 0:02:55]} 30. Bg7+ {[%emt 0:00:00]} 1-0

[Event "Lueneburg Open-A 2019"]
[Site "Lueneburg"]
[Date "2019.08.06"]
[Round "4.30"]
[White "Doederlein, Etienne"]
[Black "Lau, Felix"]
[Result "1/2-1/2"]
[ECO "D04"]
[WhiteElo "1868"]
[BlackElo "2044"]
[Annotator "NA"]
[PlyCount "88"]
[EventDate "2019.08.03"]
[EventType "swiss"]
[EventCountry "GER"]
[SourceTitle "playchess.com"]
[Source "ChessBase"]
[SourceQuality "1"]
[TimeControl "40/5400+30:1800+30"]

1. d4 {[%emt 0:00:00]} d5 {[%emt 0:00:00]} 2. Nf3 {[%emt 0:00:05]} c6 {[%emt 0:00:38]} 3. e3 {[%emt 0:00:14]} Nf6 {[%emt 0:00:26]} 4. Bd3 {[%emt 0:00:15]} Qc7 {[%emt 0:01:36]} 5. O-O {[%emt 0:00:54]} Bg4 {[%emt 0:01:37]} 6. Nbd2 {[%emt 0:00:28]} Nbd7 {[%emt 0:01:05]} 7. Be2 {[%emt 0:07:28]} O-O-O {[%emt 0:03:44]} 8. c4 {[%emt 0:01:11]} h5 {[%emt 0:06:18]} 9. Ng5 {[%emt 0:06:01]} Bxe2 {[%emt 0:09:39]} 10. Qxe2 {[%emt 0:00:09]} Ng4 {[%emt 0:00:27]} 11. f4 {[%emt 0:02:25]} Nh6 {[%emt 0:01:31]} 12. cxd5 {[%emt 0:07:02]} cxd5 {[%emt 0:00:39]} 13. Nb3 {[%emt 0:05:01]} e6 {[%emt 0:06:06]} 14. Bd2 {[%emt 0:00:28]} Kb8 {[%emt 0:01:43]} 15. Rac1 {[%emt 0:02:07]} Qd6 {[%emt 0:00:05]} 16. Rc2 {[%emt 0:10:46]} Be7 {[%emt 0:02:55]} 17. Nf3 {[%emt 0:05:41]} f6 {[%emt 0:15:40]} 18. a3 {[%emt 0:03:53]} Qb6 {[%emt 0:14:31]} 19. Qd3 {[%emt 0:00:11]} Rc8 {[%emt 0:00:53]} 20. Rfc1 {[%emt 0:00:08]} Bd6 {[%emt 0:04:06]} 21. Ba5 {[%emt 0:02:27]} Qa6 {[%emt 0:00:20]} 22. Qxa6 {[%emt 0:01:42]} bxa6 {[%emt 0:00:32]} 23. Rc6 {[%emt 0:01:06]} Nf5 {[%emt 0:01:52]} 24. Kf2 {[%emt 0:07:47]} Rxc6 {[%emt 0:02:36]} 25. Rxc6 {[%emt 0:00:02]} Kb7 {[%emt 0:00:01]} 26. Rc1 {[%emt 0:01:33]} Nb6 {[%emt 0:00:12]} 27. Bd2 {[%emt 0:05:28]} Nc4 {[%emt 0:01:14]} 28. Na5+ {[%emt 0:00:10]} Nxa5 {[%emt 0:00:53]} 29. Bxa5 {[%emt 0:00:02]} Rc8 {[%emt 0:01:50]} 30. Rxc8 {[%emt 0:00:50]} Kxc8 {[%emt 0:00:01]} 31. Ke2 {[%emt 0:08:54]} Kd7 {[%emt 0:02:23]} 32. a4 {[%emt 0:04:18]} Ne7 {[%emt 0:01:59]} 33. Bc3 {[%emt 0:03:40]} Nc6 {[%emt 0:01:04]} 34. Kd3 {[%emt 0:14:34]} Nb4+ {[%emt 0:01:03]} 35. Bxb4 {[%emt 0:00:00]} Bxb4 {[%emt 0:00:01]} 36. h3 {[%emt 0:00:00]} Kc6 {[%emt 0:01:53]} 37. g4 {[%emt 0:00:00]} hxg4 {[%emt 0:00:02]} 38. hxg4 {[%emt 0:00:00]} Kb6 {[%emt 0:01:16]} 39. Kc2 {[%emt 0:00:00]} Ka5 {[%emt 0:01:39]} 40. Kb3 {[%emt 0:00:00]} g6 {[%emt 0:02:01]} 41. g5 {[%emt 0:32:50]} fxg5 {[%emt 0:37:00]} 42. Nxg5 {[%emt 0:00:02]} Bd2 {[%emt 0:07:29]} 43. Nxe6 {[%emt 0:01:38]} Bxe3 {[%emt 0:00:00]} 44. Nf8 {[%emt 0:00:00]} g5 {[%emt 0:01:00]} 1/2-1/2

[Event "Lueneburg Open-A 2019"]
[Site "Lueneburg"]
[Date "2019.08.06"]
[Round "4.31"]
[White "Porth, Hartmut"]
[Black "Schulze, Lukas"]
[Result "0-1"]
[ECO "B22"]
[WhiteElo "2032"]
[BlackElo "1724"]
[Annotator "NA"]
[PlyCount "70"]
[EventDate "2019.08.03"]
[EventType "swiss"]
[EventCountry "GER"]
[SourceTitle "playchess.com"]
[Source "ChessBase"]
[SourceQuality "1"]
[TimeControl "40/5400+30:1800+30"]

1. e4 {[%emt 0:04:42]} c5 {[%emt 0:00:00]} 2. f4 {[%emt 0:00:10]} d6 {[%emt 0:00:23]} 3. Nf3 {[%emt 0:00:06]} Nf6 {[%emt 0:01:02]} 4. d3 {[%emt 0:00:13]} g6 {[%emt 0:00:52]} 5. Be2 {[%emt 0:00:09]} Bg7 {[%emt 0:00:16]} 6. c3 {[%emt 0:00:10]} O-O {[%emt 0:01:08]} 7. O-O {[%emt 0:00:14]} Nc6 {[%emt 0:01:04]} 8. Na3 {[%emt 0:01:40]} Bd7 {[%emt 0:03:02]} 9. Qe1 {[%emt 0:00:40]} a6 {[%emt 0:01:35]} 10. Qh4 {[%emt 0:06:06]} b5 {[%emt 0:02:27]} 11. Nc2 {[%emt 0:08:49]} Qb6 {[%emt 0:02:14]} 12. f5 {[%emt 0:05:19]} b4 {[%emt 0:07:33]} 13. fxg6 {[%emt 0:03:53]} hxg6 {[%emt 0:02:56]} 14. Ng5 {[%emt 0:01:48]} Rfb8 {[%emt 0:01:23]} 15. d4 {[%emt 0:02:32]} cxd4 {[%emt 0:03:38]} 16. Bc4 {[%emt 0:16:03]} Ne5 {[%emt 0:01:40]} 17. Bd5 {[%emt 0:00:07]} Bc6 {[%emt 0:02:30]} 18. Nxd4 {[%emt 0:10:24]} Bxd5 {[%emt 0:00:51]} 19. exd5 {[%emt 0:00:03]} bxc3 {[%emt 0:05:58]} 20. bxc3 {[%emt 0:00:14]} Rc8 {[%emt 0:01:08]} 21. Kh1 {[%emt 0:16:01]} Rxc3 {[%emt 0:03:35]} 22. Rxf6 {[%emt 0:03:52]} Bxf6 {[%emt 0:02:55]} 23. Qh7+ {[%emt 0:00:08]} Kf8 {[%emt 0:00:05]} 24. Nge6+ {[%emt 0:00:34]} fxe6 {[%emt 0:01:25]} 25. Nxe6+ {[%emt 0:01:38]} Ke8 {[%emt 0:00:10]} 26. Qg8+ {[%emt 0:00:07]} Kd7 {[%emt 0:00:13]} 27. Qxa8 {[%emt 0:01:30]} Rc8 {[%emt 0:02:57]} 28. Nf8+ {[%emt 0:00:09]} Rxf8 {[%emt 0:04:57]} 29. Qxf8 {[%emt 0:00:06]} Nd3 {[%emt 0:00:25]} 30. g3 {[%emt 0:06:58]} Bxa1 {[%emt 0:01:56]} 31. Bg5 {[%emt 0:00:16]} Qb1+ {[%emt 0:04:08]} 32. Kg2 {[%emt 0:00:03]} Ne1+ {[%emt 0:00:31]} 33. Kf2 {[%emt 0:02:25]} Bd4+ {[%emt 0:00:20]} 34. Ke2 {[%emt 0:00:30]} Qe4+ {[%emt 0:00:48]} 35. Kd1 {[%emt 0:00:14]} Qf3+ {[%emt 0:00:32]} 0-1

[Event "Lueneburg Open-A 2019"]
[Site "Lueneburg"]
[Date "2019.08.06"]
[Round "4.32"]
[White "Terhorst, Jochen"]
[Black "Darpan, Inani"]
[Result "1/2-1/2"]
[ECO "D00"]
[WhiteElo "2144"]
[BlackElo "1956"]
[Annotator "NA"]
[PlyCount "25"]
[EventDate "2019.08.03"]
[EventType "swiss"]
[EventCountry "GER"]
[SourceTitle "playchess.com"]
[Source "ChessBase"]
[SourceQuality "1"]
[TimeControl "40/5400+30:1800+30"]

1. d4 {[%emt 1:30:30]} d5 {[%emt 1:30:30]} 2. Bf4 {[%emt 0:00:00]} Nf6 {[%emt 0:00:30]} 3. e3 {[%emt 0:00:00]} e6 {[%emt 0:00:30]} 4. Nd2 {[%emt 0:00:00]} Bd6 {[%emt 0:00:30]} 5. Bg3 {[%emt 0:00:00]} b6 {[%emt 0:00:30]} 6. c3 {[%emt 0:00:00]} Bb7 {[%emt 0:00:30]} 7. Ngf3 {[%emt 0:00:00]} Bxg3 {[%emt 0:00:30]} 8. hxg3 {[%emt 0:00:00]} Nbd7 {[%emt 0:00:00]} 9. Qb1 {[%emt 0:00:00]} Qe7 {[%emt 0:01:00]} 10. a4 {[%emt 0:00:00]} e5 {[%emt 0:00:30]} 11. dxe5 {[%emt 0:00:00]} Nxe5 {[%emt 0:00:30]} 12. Qf5 {[%emt 0:00:00]} Neg4 {[%emt 0:00:30]} 13. Be2 {[%emt 0:00:00]} 1/2-1/2